Workbook

Sheet Июль
P1: Июль | T1: -3 | X1: Экономия | Y1: Базовая норма расхода на 100 км | Z1: Базовая норма расхода на 1 мото/час | AB1: =(MID(CELL("filename",A1),SEARCH("]",CELL("filename",A1))+1,31)) -> Июль
A2: Общество с ограниченной ответственностью "Втормет Царицыно" | R2: 1-я пол. | S2: =INDIRECT(TEXT(A7-1,"ММММ")&"!T3")+1 ->  | T2: 2018-07-15 | U2: =ТС!E5 -> 500 | V2: =SUMIFS(Июль[Выдано топливо, литр],Июль[Дата],">="&$S$2,#REF!,"<="&$T$2)+IF(MONTH(T2)<>MONTH(S2),INDIRECT(TEXT(A7-1,"ММММ")&"!F38")-SUM(INDIRECT(TEXT(A7-1,"ММММ")&"!V3:V2")))+SUMIFS($U$7:$U$37,Июль[Дата],">="&$S$2,Июль[Дата],"<="&$T$2)+IF(MONTH(T2)<>MONTH(S2),INDIRECT(TEXT(A7-1,"ММММ")&"!F38")-SUM(INDIRECT(TEXT(A7-1,"ММММ")&"!V3:V2"))) ->  | W2: =IF(V2=0,0,(SUMIFS(N7:N37,A7:A37,">="&S2,A7:A37,"<="&T2)+SUMIFS(INDIRECT(TEXT(A7-1,"ММММ")&"!N7:N37"),INDIRECT(TEXT(A7-1,"ММММ")&"!A7:A37"),">="&S2))/(V2-U2+IF(MONTH(T2)=MONTH(S2),G7,INDEX(INDIRECT(TEXT(A7-1,"ММММ")&"!G7:G37"),DAY(S2))))) ->  | X2: =SUMIFS(Июль[Отклонение от нормы (Перерасход(+), экономия(-)), литр],Июль[Дата],">="&$S$2,Июль[Дата],"<="&$T$2) -> 0 | Y2: =IF(Y4="Зима",VLOOKUP(Z4,Расчет[[Номер гос.регистрации / Заводской номер]:[Итога норма а/м "ЛЕТО"]],8,FALSE),VLOOKUP(Z4,Расчет[[Номер гос.регистрации / Заводской номер]:[Итога норма а/м "ЛЕТО"]],9,FALSE)) -> 46.86 | Z2: =IF(Y4="Зима",VLOOKUP(Z4,Расчет[[Номер гос.регистрации / Заводской номер]:[Итога норма а/м "ЛЕТО"]],13,FALSE),VLOOKUP(Z4,Расчет[[Номер гос.регистрации / Заводской номер]:[Итога норма а/м "ЛЕТО"]],14,FALSE)) -> 5.5 | AB2: =INDIRECT(P1&"!G7") -> 500
A3: Отчет водителя ломовоза с манипулятором | R3: 2-я пол. | S3: =T2+1 -> 2018-07-16 | T3: =INDEX(Июль[Дата],COUNT(Июль[Дата]))-T1 -> 2018-08-03 | U3: =ТС!E6 -> 500 | V3: =SUMIFS(Июль[Выдано топливо, литр],Июль[Дата],">="&$S$3,#REF!,"<="&$T$3)+IF(MONTH(T3)<>MONTH(S3),SUMIFS(INDIRECT(TEXT(T3,"ММММ")&"[Выдано топливо, литр]"),INDIRECT(TEXT(T3,"ММММ")&"[Дата]"),">="&$S$3,INDIRECT(TEXT(T3,"ММММ")&"[Дата]"),"<="&$T$3))+SUMIFS($U$7:$U$37,Июль[Дата],">="&$S$3,Июль[Дата],"<="&$T$3)+IF(MONTH(T3)<>MONTH(S3),SUMIFS(INDIRECT(TEXT(T3,"ММММ")&"[Выдано топливо, литр]"),INDIRECT(TEXT(T3,"ММММ")&"[Дата]"),">="&$S$3,INDIRECT(TEXT(T3,"ММММ")&"[Дата]"),"<="&$T$3)) ->  | W3: =IF(V3=0,0,(SUMIFS(N7:N37,A7:A37,">="&S3,A7:A37,"<="&T3)+SUMIFS(INDIRECT(TEXT(A7-1,"ММММ")&"!N7:N37"),INDIRECT(TEXT(A7-1,"ММММ")&"!A7:A37"),">="&S3))/(V3-U3+IF(MONTH(T3)=MONTH(S3),G7,INDEX(INDIRECT(TEXT(A7-1,"ММММ")&"!G7:G37"),DAY(S3))))) ->  | X3: =SUMIFS(Июль[Отклонение от нормы (Перерасход(+), экономия(-)), литр],Июль[Дата],">="&$S$3,Июль[Дата],"<="&$T$3) -> 0 | AB3: =INDIRECT(P1&"!G7") -> 500
H4: за | I4: 2018 | O4: =#REF! ->  | S4: =IF(INDEX(Июль[Дата],COUNT(Июль[Дата]))=T3,"",T3+1) -> 2018-08-04 | W4: =IFERROR(IF(S4="","",INDIRECT(TEXT(A7+40,"ММММ")&"!W2")),) -> 0 | Y4: Лето | Z4: Норма 1
A6: Дата | B6: ФИО водителя | C6: Показание одометра машины на начало дня, км | D6: Показание одометра машины на конец дня, км | E6: Пройдено за день, км | F6: Выдано топливо, литр | G6: Остаток топлива в баке на начало дня, литр | H6: Показание счетчика моточасов спецоборудования на начало дня, м/ч | I6: Показание счетчика моточасов спецоборудования на конец дня, м/ч | J6: Работа спецоборудования за день, м/ч | K6: Количество ходок | L6: Расход топлива на работу спецоборудования, литр | M6: Остаток топлива в баке на конец дня, литр | N6: Расход топлива по норме, литр | O6: Фактический расход топлива, литр | P6: Отклонение от нормы (Перерасход(+), экономия(-)), литр | R6: Дата | S6: Обнуление одометра, км | T6: Пройдено за день, км | U6: Выдано топливо, литр | V6: Обнуление счетчика моточасов спецоборудования, м/ч | W6: Работа спецоборудования за день, м/ч | X6: Расход топлива по норме, литр | Y6: Фактический расход топлива, литр | Z6: Дата
A7: 2018-07-01 | B7: Кобалян М.В. | C7: 220024 | D7: 220036 | E7: 12 | F7: 0 | G7: 500 | H7: 945 | I7: 946 | J7: 1 | K7: 1 | L7: =IF(Июль[[#This Row],[Работа спецоборудования за день, м/ч]]="","",Июль[[#This Row],[Работа спецоборудования за день, м/ч]]*$Z$2) -> 5.5 | M7: =IF($T$2=[Дата],VLOOKUP([Дата],S$2:U$3,3),IF($T$3=[Дата],VLOOKUP([Дата],S$2:U$3,3),INDIRECT($P$1&"!F8")+INDIRECT($P$1&"!U8")+INDIRECT($P$1&"!G8")-INDIRECT($P$1&"!O88"))) -> 450 | N7: =IFERROR(ROUND((Июль[[#This Row],[Пройдено за день, км]]*0.01*$Y$2+Июль[[#This Row],[Расход топлива на работу спецоборудования, литр]]),3)+X7,"") -> 11.123 | O7: =IF(Июль[[#This Row],[Дата]]="","",IFERROR(ROUND(Июль[[#This Row],[Расход топлива по норме, литр]]/VLOOKUP([Дата],S$2:W$4,5),0)+Y7,)) -> 0 | P7: =IFERROR(Июль[[#This Row],[Фактический расход топлива, литр]]-Июль[[#This Row],[Расход топлива по норме, литр]],"") -> -11.123 | R7: =Июль[[#This Row],[Дата]] -> 2018-07-01 | U7: -50 | Z7: =Июль[[#This Row],[Дата]] -> 2018-07-01
A8: 2018-07-02 | B8: Кобалян М.В. | C8: 220036 | D8: 220071 | E8: 35 | F8: 0 | G8: 450 | H8: 946 | I8: 947 | J8: 1 | K8: 1 | L8: =IF(Июль[[#This Row],[Работа спецоборудования за день, м/ч]]="","",Июль[[#This Row],[Работа спецоборудования за день, м/ч]]*$Z$2) -> 5.5 | M8: =IF($T$2=[Дата],VLOOKUP([Дата],S$2:U$3,3),IF($T$3=[Дата],VLOOKUP([Дата],S$2:U$3,3),INDIRECT($P$1&"!F8")+INDIRECT($P$1&"!U8")+INDIRECT($P$1&"!G8")-INDIRECT($P$1&"!O88"))) -> 450 | N8: =IFERROR(ROUND((Июль[[#This Row],[Пройдено за день, км]]*0.01*$Y$2+Июль[[#This Row],[Расход топлива на работу спецоборудования, литр]]),3)+X8,"") -> 21.901 | O8: =IF(Июль[[#This Row],[Дата]]="","",IFERROR(ROUND(Июль[[#This Row],[Расход топлива по норме, литр]]/VLOOKUP([Дата],S$2:W$4,5),0)+Y8,)) -> 0 | P8: =IFERROR(Июль[[#This Row],[Фактический расход топлива, литр]]-Июль[[#This Row],[Расход топлива по норме, литр]],"") -> -21.901 | R8: =Июль[[#This Row],[Дата]] -> 2018-07-02 | Z8: =Июль[[#This Row],[Дата]] -> 2018-07-02 | AB8: =IF(U8="",Июль[[#This Row],[Остаток топлива в баке на начало дня, литр]],Июль[[#This Row],[Выдано топливо, литр]]+U8+Июль[[#This Row],[Остаток топлива в баке на начало дня, литр]]-Июль[[#This Row],[Фактический расход топлива, литр]]) -> 450 | AC8: =SUMIFS(Июль[Выдано топливо, литр],Июль[Дата],">="&$S$2,Июль[Дата],"<="&$T$2)+IF(MONTH(T2)<>MONTH(S2),INDIRECT(TEXT(A7-1,"ММММ")&"!F38")-SUM(INDIRECT(TEXT(A7-1,"ММММ")&"!V3:V2"))) -> 
A9: 2018-07-03 | B9: Малышев О.С. | C9: 220071 | D9: 220293 | E9: 222 | F9: 0 | G9: 450 | H9: 947 | I9: 950 | J9: 3 | K9: 2 | L9: =IF(Июль[[#This Row],[Работа спецоборудования за день, м/ч]]="","",Июль[[#This Row],[Работа спецоборудования за день, м/ч]]*$Z$2) -> 16.5 | M9: =IF($T$2=[Дата],VLOOKUP([Дата],S$2:U$3,3),IF($T$3=[Дата],VLOOKUP([Дата],S$2:U$3,3),INDIRECT($P$1&"!F8")+INDIRECT($P$1&"!U8")+INDIRECT($P$1&"!G8")-INDIRECT($P$1&"!O88"))) -> 450 | N9: =IFERROR(ROUND((Июль[[#This Row],[Пройдено за день, км]]*0.01*$Y$2+Июль[[#This Row],[Расход топлива на работу спецоборудования, литр]]),3)+X9,"") -> 120.529 | O9: =IF(Июль[[#This Row],[Дата]]="","",IFERROR(ROUND(Июль[[#This Row],[Расход топлива по норме, литр]]/VLOOKUP([Дата],S$2:W$4,5),0)+Y9,)) -> 0 | P9: =IFERROR(Июль[[#This Row],[Фактический расход топлива, литр]]-Июль[[#This Row],[Расход топлива по норме, литр]],"") -> -120.529 | R9: =Июль[[#This Row],[Дата]] -> 2018-07-03 | U9: 150 | Z9: =Июль[[#This Row],[Дата]] -> 2018-07-03
A10: 2018-07-04 | B10: Малышев О.С. | C10: 220293 | D10: 220423 | E10: 130 | F10: 0 | G10: 450 | H10: 950 | I10: 953 | J10: 3 | K10: 3 | L10: =IF(Июль[[#This Row],[Работа спецоборудования за день, м/ч]]="","",Июль[[#This Row],[Работа спецоборудования за день, м/ч]]*$Z$2) -> 16.5 | M10: =IF($T$2=[Дата],VLOOKUP([Дата],S$2:U$3,3),IF($T$3=[Дата],VLOOKUP([Дата],S$2:U$3,3),INDIRECT($P$1&"!F8")+INDIRECT($P$1&"!U8")+INDIRECT($P$1&"!G8")-INDIRECT($P$1&"!O88"))) -> 450 | N10: =IFERROR(ROUND((Июль[[#This Row],[Пройдено за день, км]]*0.01*$Y$2+Июль[[#This Row],[Расход топлива на работу спецоборудования, литр]]),3)+X10,"") -> 77.418 | O10: =IF(Июль[[#This Row],[Дата]]="","",IFERROR(ROUND(Июль[[#This Row],[Расход топлива по норме, литр]]/VLOOKUP([Дата],S$2:W$4,5),0)+Y10,)) -> 0 | P10: =IFERROR(Июль[[#This Row],[Фактический расход топлива, литр]]-Июль[[#This Row],[Расход топлива по норме, литр]],"") -> -77.418 | R10: =Июль[[#This Row],[Дата]] -> 2018-07-04 | U10: 350 | Z10: =Июль[[#This Row],[Дата]] -> 2018-07-04
A11: 2018-07-05 | B11: Малышев О.С. | C11: 220423 | D11: 220525 | E11: 102 | F11: 0 | G11: 450 | H11: 953 | I11: 957 | J11: 4 | K11: 3 | L11: =IF(Июль[[#This Row],[Работа спецоборудования за день, м/ч]]="","",Июль[[#This Row],[Работа спецоборудования за день, м/ч]]*$Z$2) -> 22 | M11: =IF($T$2=[Дата],VLOOKUP([Дата],S$2:U$3,3),IF($T$3=[Дата],VLOOKUP([Дата],S$2:U$3,3),INDIRECT($P$1&"!F8")+INDIRECT($P$1&"!U8")+INDIRECT($P$1&"!G8")-INDIRECT($P$1&"!O88"))) -> 450 | N11: =IFERROR(ROUND((Июль[[#This Row],[Пройдено за день, км]]*0.01*$Y$2+Июль[[#This Row],[Расход топлива на работу спецоборудования, литр]]),3)+X11,"") -> 69.797 | O11: =IF(Июль[[#This Row],[Дата]]="","",IFERROR(ROUND(Июль[[#This Row],[Расход топлива по норме, литр]]/VLOOKUP([Дата],S$2:W$4,5),0)+Y11,)) -> 0 | P11: =IFERROR(Июль[[#This Row],[Фактический расход топлива, литр]]-Июль[[#This Row],[Расход топлива по норме, литр]],"") -> -69.797 | R11: =Июль[[#This Row],[Дата]] -> 2018-07-05 | Z11: =Июль[[#This Row],[Дата]] -> 2018-07-05
A12: 2018-07-06 | B12: Малышев О.С. | C12: 220525 | D12: 220646 | E12: 121 | F12: 0 | G12: 450 | H12: 957 | I12: 960 | J12: 3 | K12: 2 | L12: =IF(Июль[[#This Row],[Работа спецоборудования за день, м/ч]]="","",Июль[[#This Row],[Работа спецоборудования за день, м/ч]]*$Z$2) -> 16.5 | M12: =IF($T$2=[Дата],VLOOKUP([Дата],S$2:U$3,3),IF($T$3=[Дата],VLOOKUP([Дата],S$2:U$3,3),INDIRECT($P$1&"!F8")+INDIRECT($P$1&"!U8")+INDIRECT($P$1&"!G8")-INDIRECT($P$1&"!O88"))) -> 450 | N12: =IFERROR(ROUND((Июль[[#This Row],[Пройдено за день, км]]*0.01*$Y$2+Июль[[#This Row],[Расход топлива на работу спецоборудования, литр]]),3)+X12,"") -> 73.201 | O12: =IF(Июль[[#This Row],[Дата]]="","",IFERROR(ROUND(Июль[[#This Row],[Расход топлива по норме, литр]]/VLOOKUP([Дата],S$2:W$4,5),0)+Y12,)) -> 0 | P12: =IFERROR(Июль[[#This Row],[Фактический расход топлива, литр]]-Июль[[#This Row],[Расход топлива по норме, литр]],"") -> -73.201 | R12: =Июль[[#This Row],[Дата]] -> 2018-07-06 | Z12: =Июль[[#This Row],[Дата]] -> 2018-07-06
A13: 2018-07-07 | B13: Малышев О.С. | C13: 220646 | D13: 220730 | E13: 84 | F13: 0 | G13: 450 | H13: 960 | I13: 963 | J13: 3 | K13: 2 | L13: =IF(Июль[[#This Row],[Работа спецоборудования за день, м/ч]]="","",Июль[[#This Row],[Работа спецоборудования за день, м/ч]]*$Z$2) -> 16.5 | M13: =IF($T$2=[Дата],VLOOKUP([Дата],S$2:U$3,3),IF($T$3=[Дата],VLOOKUP([Дата],S$2:U$3,3),INDIRECT($P$1&"!F8")+INDIRECT($P$1&"!U8")+INDIRECT($P$1&"!G8")-INDIRECT($P$1&"!O88"))) -> 450 | N13: =IFERROR(ROUND((Июль[[#This Row],[Пройдено за день, км]]*0.01*$Y$2+Июль[[#This Row],[Расход топлива на работу спецоборудования, литр]]),3)+X13,"") -> 55.862 | O13: =IF(Июль[[#This Row],[Дата]]="","",IFERROR(ROUND(Июль[[#This Row],[Расход топлива по норме, литр]]/VLOOKUP([Дата],S$2:W$4,5),0)+Y13,)) -> 0 | P13: =IFERROR(Июль[[#This Row],[Фактический расход топлива, литр]]-Июль[[#This Row],[Расход топлива по норме, литр]],"") -> -55.862 | R13: =Июль[[#This Row],[Дата]] -> 2018-07-07 | Z13: =Июль[[#This Row],[Дата]] -> 2018-07-07
A14: 2018-07-08 | B14: Малышев О.С. | C14: 220730 | D14: 220879 | E14: 149 | F14: 0 | G14: 450 | H14: 963 | I14: 965 | J14: 2 | K14: 1 | L14: =IF(Июль[[#This Row],[Работа спецоборудования за день, м/ч]]="","",Июль[[#This Row],[Работа спецоборудования за день, м/ч]]*$Z$2) -> 11 | M14: =IF($T$2=[Дата],VLOOKUP([Дата],S$2:U$3,3),IF($T$3=[Дата],VLOOKUP([Дата],S$2:U$3,3),INDIRECT($P$1&"!F8")+INDIRECT($P$1&"!U8")+INDIRECT($P$1&"!G8")-INDIRECT($P$1&"!O88"))) -> 450 | N14: =IFERROR(ROUND((Июль[[#This Row],[Пройдено за день, км]]*0.01*$Y$2+Июль[[#This Row],[Расход топлива на работу спецоборудования, литр]]),3)+X14,"") -> 80.821 | O14: =IF(Июль[[#This Row],[Дата]]="","",IFERROR(ROUND(Июль[[#This Row],[Расход топлива по норме, литр]]/VLOOKUP([Дата],S$2:W$4,5),0)+Y14,)) -> 0 | P14: =IFERROR(Июль[[#This Row],[Фактический расход топлива, литр]]-Июль[[#This Row],[Расход топлива по норме, литр]],"") -> -80.821 | R14: =Июль[[#This Row],[Дата]] -> 2018-07-08 | Z14: =Июль[[#This Row],[Дата]] -> 2018-07-08
A15: 2018-07-09 | B15: Малышев О.С. | C15: 220879 | D15: 221022 | E15: 143 | F15: 0 | G15: 450 | H15: 965 | I15: 970 | J15: 5 | K15: 3 | L15: =IF(Июль[[#This Row],[Работа спецоборудования за день, м/ч]]="","",Июль[[#This Row],[Работа спецоборудования за день, м/ч]]*$Z$2) -> 27.5 | M15: =IF($T$2=[Дата],VLOOKUP([Дата],S$2:U$3,3),IF($T$3=[Дата],VLOOKUP([Дата],S$2:U$3,3),INDIRECT($P$1&"!F8")+INDIRECT($P$1&"!U8")+INDIRECT($P$1&"!G8")-INDIRECT($P$1&"!O88"))) -> 450 | N15: =IFERROR(ROUND((Июль[[#This Row],[Пройдено за день, км]]*0.01*$Y$2+Июль[[#This Row],[Расход топлива на работу спецоборудования, литр]]),3)+X15,"") -> 94.51 | O15: =IF(Июль[[#This Row],[Дата]]="","",IFERROR(ROUND(Июль[[#This Row],[Расход топлива по норме, литр]]/VLOOKUP([Дата],S$2:W$4,5),0)+Y15,)) -> 0 | P15: =IFERROR(Июль[[#This Row],[Фактический расход топлива, литр]]-Июль[[#This Row],[Расход топлива по норме, литр]],"") -> -94.51 | R15: =Июль[[#This Row],[Дата]] -> 2018-07-09 | Z15: =Июль[[#This Row],[Дата]] -> 2018-07-09
A16: 2018-07-10 | B16: Малышев О.С. | C16: 221022 | D16: 221195 | E16: 173 | F16: 0 | G16: 450 | H16: 970 | I16: 972 | J16: 2 | K16: 3 | L16: =IF(Июль[[#This Row],[Работа спецоборудования за день, м/ч]]="","",Июль[[#This Row],[Работа спецоборудования за день, м/ч]]*$Z$2) -> 11 | M16: =IF($T$2=[Дата],VLOOKUP([Дата],S$2:U$3,3),IF($T$3=[Дата],VLOOKUP([Дата],S$2:U$3,3),INDIRECT($P$1&"!F8")+INDIRECT($P$1&"!U8")+INDIRECT($P$1&"!G8")-INDIRECT($P$1&"!O88"))) -> 450 | N16: =IFERROR(ROUND((Июль[[#This Row],[Пройдено за день, км]]*0.01*$Y$2+Июль[[#This Row],[Расход топлива на работу спецоборудования, литр]]),3)+X16,"") -> 92.068 | O16: =IF(Июль[[#This Row],[Дата]]="","",IFERROR(ROUND(Июль[[#This Row],[Расход топлива по норме, литр]]/VLOOKUP([Дата],S$2:W$4,5),0)+Y16,)) -> 0 | P16: =IFERROR(Июль[[#This Row],[Фактический расход топлива, литр]]-Июль[[#This Row],[Расход топлива по норме, литр]],"") -> -92.068 | R16: =Июль[[#This Row],[Дата]] -> 2018-07-10 | Z16: =Июль[[#This Row],[Дата]] -> 2018-07-10
A17: 2018-07-11 | B17: Малышев О.С. | C17: 221195 | D17: 221339 | E17: 144 | F17: 0 | G17: 450 | H17: 972 | I17: 975 | J17: 3 | K17: 4 | L17: =IF(Июль[[#This Row],[Работа спецоборудования за день, м/ч]]="","",Июль[[#This Row],[Работа спецоборудования за день, м/ч]]*$Z$2) -> 16.5 | M17: =IF($T$2=[Дата],VLOOKUP([Дата],S$2:U$3,3),IF($T$3=[Дата],VLOOKUP([Дата],S$2:U$3,3),INDIRECT($P$1&"!F8")+INDIRECT($P$1&"!U8")+INDIRECT($P$1&"!G8")-INDIRECT($P$1&"!O88"))) -> 450 | N17: =IFERROR(ROUND((Июль[[#This Row],[Пройдено за день, км]]*0.01*$Y$2+Июль[[#This Row],[Расход топлива на работу спецоборудования, литр]]),3)+X17,"") -> 83.978 | O17: =IF(Июль[[#This Row],[Дата]]="","",IFERROR(ROUND(Июль[[#This Row],[Расход топлива по норме, литр]]/VLOOKUP([Дата],S$2:W$4,5),0)+Y17,)) -> 0 | P17: =IFERROR(Июль[[#This Row],[Фактический расход топлива, литр]]-Июль[[#This Row],[Расход топлива по норме, литр]],"") -> -83.978 | R17: =Июль[[#This Row],[Дата]] -> 2018-07-11 | U17: 145 | Z17: =Июль[[#This Row],[Дата]] -> 2018-07-11
A18: 2018-07-12 | C18: 221339 | E18: -221339 | F18: 0 | G18: 595 | H18: 975 | J18: -975 | L18: =IF(Июль[[#This Row],[Работа спецоборудования за день, м/ч]]="","",Июль[[#This Row],[Работа спецоборудования за день, м/ч]]*$Z$2) -> -5362.5 | M18: =IF($T$2=[Дата],VLOOKUP([Дата],S$2:U$3,3),IF($T$3=[Дата],VLOOKUP([Дата],S$2:U$3,3),INDIRECT($P$1&"!F8")+INDIRECT($P$1&"!U8")+INDIRECT($P$1&"!G8")-INDIRECT($P$1&"!O88"))) -> 450 | N18: =IFERROR(ROUND((Июль[[#This Row],[Пройдено за день, км]]*0.01*$Y$2+Июль[[#This Row],[Расход топлива на работу спецоборудования, литр]]),3)+X18,"") -> -109081.955 | O18: =IF(Июль[[#This Row],[Дата]]="","",IFERROR(ROUND(Июль[[#This Row],[Расход топлива по норме, литр]]/VLOOKUP([Дата],S$2:W$4,5),0)+Y18,)) -> 0 | P18: =IFERROR(Июль[[#This Row],[Фактический расход топлива, литр]]-Июль[[#This Row],[Расход топлива по норме, литр]],"") -> 109081.955 | R18: =Июль[[#This Row],[Дата]] -> 2018-07-12 | Z18: =Июль[[#This Row],[Дата]] -> 2018-07-12
A19: 2018-07-13 | C19: 0 | E19: 0 | F19: 0 | G19: 449 | H19: 0 | J19: 0 | L19: =IF(Июль[[#This Row],[Работа спецоборудования за день, м/ч]]="","",Июль[[#This Row],[Работа спецоборудования за день, м/ч]]*$Z$2) -> 0 | M19: =IF($T$2=[Дата],VLOOKUP([Дата],S$2:U$3,3),IF($T$3=[Дата],VLOOKUP([Дата],S$2:U$3,3),INDIRECT($P$1&"!F8")+INDIRECT($P$1&"!U8")+INDIRECT($P$1&"!G8")-INDIRECT($P$1&"!O88"))) -> 450 | N19: =IFERROR(ROUND((Июль[[#This Row],[Пройдено за день, км]]*0.01*$Y$2+Июль[[#This Row],[Расход топлива на работу спецоборудования, литр]]),3)+X19,"") -> 0 | O19: =IF(Июль[[#This Row],[Дата]]="","",IFERROR(ROUND(Июль[[#This Row],[Расход топлива по норме, литр]]/VLOOKUP([Дата],S$2:W$4,5),0)+Y19,)) -> 0 | P19: =IFERROR(Июль[[#This Row],[Фактический расход топлива, литр]]-Июль[[#This Row],[Расход топлива по норме, литр]],"") -> 0 | R19: =Июль[[#This Row],[Дата]] -> 2018-07-13 | Z19: =Июль[[#This Row],[Дата]] -> 2018-07-13
A20: 2018-07-14 | C20: 0 | E20: 0 | F20: 0 | G20: 449 | H20: 0 | J20: 0 | L20: =IF(Июль[[#This Row],[Работа спецоборудования за день, м/ч]]="","",Июль[[#This Row],[Работа спецоборудования за день, м/ч]]*$Z$2) -> 0 | M20: =IF($T$2=[Дата],VLOOKUP([Дата],S$2:U$3,3),IF($T$3=[Дата],VLOOKUP([Дата],S$2:U$3,3),INDIRECT($P$1&"!F8")+INDIRECT($P$1&"!U8")+INDIRECT($P$1&"!G8")-INDIRECT($P$1&"!O88"))) -> 450 | N20: =IFERROR(ROUND((Июль[[#This Row],[Пройдено за день, км]]*0.01*$Y$2+Июль[[#This Row],[Расход топлива на работу спецоборудования, литр]]),3)+X20,"") -> 0 | O20: =IF(Июль[[#This Row],[Дата]]="","",IFERROR(ROUND(Июль[[#This Row],[Расход топлива по норме, литр]]/VLOOKUP([Дата],S$2:W$4,5),0)+Y20,)) -> 0 | P20: =IFERROR(Июль[[#This Row],[Фактический расход топлива, литр]]-Июль[[#This Row],[Расход топлива по норме, литр]],"") -> 0 | R20: =Июль[[#This Row],[Дата]] -> 2018-07-14 | Z20: =Июль[[#This Row],[Дата]] -> 2018-07-14
A21: 2018-07-15 | C21: 0 | E21: 0 | F21: 0 | G21: 449 | H21: 0 | J21: 0 | L21: =IF(Июль[[#This Row],[Работа спецоборудования за день, м/ч]]="","",Июль[[#This Row],[Работа спецоборудования за день, м/ч]]*$Z$2) -> 0 | M21: =IF($T$2=[Дата],VLOOKUP([Дата],S$2:U$3,3),IF($T$3=[Дата],VLOOKUP([Дата],S$2:U$3,3),INDIRECT($P$1&"!F8")+INDIRECT($P$1&"!U8")+INDIRECT($P$1&"!G8")-INDIRECT($P$1&"!O88"))) ->  | N21: =IFERROR(ROUND((Июль[[#This Row],[Пройдено за день, км]]*0.01*$Y$2+Июль[[#This Row],[Расход топлива на работу спецоборудования, литр]]),3)+X21,"") -> 0 | O21: =IF(Июль[[#This Row],[Дата]]="","",IFERROR(ROUND(Июль[[#This Row],[Расход топлива по норме, литр]]/VLOOKUP([Дата],S$2:W$4,5),0)+Y21,)) -> 0 | P21: =IFERROR(Июль[[#This Row],[Фактический расход топлива, литр]]-Июль[[#This Row],[Расход топлива по норме, литр]],"") -> 0 | R21: =Июль[[#This Row],[Дата]] -> 2018-07-15 | Z21: =Июль[[#This Row],[Дата]] -> 2018-07-15
A22: 2018-07-16 | C22: 0 | E22: 0 | F22: 0 | G22: 500 | H22: 0 | J22: 0 | L22: =IF(Июль[[#This Row],[Работа спецоборудования за день, м/ч]]="","",Июль[[#This Row],[Работа спецоборудования за день, м/ч]]*$Z$2) -> 0 | M22: =IF($T$2=[Дата],VLOOKUP([Дата],S$2:U$3,3),IF($T$3=[Дата],VLOOKUP([Дата],S$2:U$3,3),INDIRECT($P$1&"!F8")+INDIRECT($P$1&"!U8")+INDIRECT($P$1&"!G8")-INDIRECT($P$1&"!O88"))) -> 450 | N22: =IFERROR(ROUND((Июль[[#This Row],[Пройдено за день, км]]*0.01*$Y$2+Июль[[#This Row],[Расход топлива на работу спецоборудования, литр]]),3)+X22,"") -> 0 | O22: =IF(Июль[[#This Row],[Дата]]="","",IFERROR(ROUND(Июль[[#This Row],[Расход топлива по норме, литр]]/VLOOKUP([Дата],S$2:W$4,5),0)+Y22,)) -> 0 | P22: =IFERROR(Июль[[#This Row],[Фактический расход топлива, литр]]-Июль[[#This Row],[Расход топлива по норме, литр]],"") -> 0 | R22: =Июль[[#This Row],[Дата]] -> 2018-07-16 | Z22: =Июль[[#This Row],[Дата]] -> 2018-07-16
A23: 2018-07-17 | C23: 0 | E23: 0 | F23: 0 | G23: 500 | H23: 0 | J23: 0 | L23: =IF(Июль[[#This Row],[Работа спецоборудования за день, м/ч]]="","",Июль[[#This Row],[Работа спецоборудования за день, м/ч]]*$Z$2) -> 0 | M23: =IF($T$2=[Дата],VLOOKUP([Дата],S$2:U$3,3),IF($T$3=[Дата],VLOOKUP([Дата],S$2:U$3,3),INDIRECT($P$1&"!F8")+INDIRECT($P$1&"!U8")+INDIRECT($P$1&"!G8")-INDIRECT($P$1&"!O88"))) -> 450 | N23: =IFERROR(ROUND((Июль[[#This Row],[Пройдено за день, км]]*0.01*$Y$2+Июль[[#This Row],[Расход топлива на работу спецоборудования, литр]]),3)+X23,"") -> 0 | O23: =IF(Июль[[#This Row],[Дата]]="","",IFERROR(ROUND(Июль[[#This Row],[Расход топлива по норме, литр]]/VLOOKUP([Дата],S$2:W$4,5),0)+Y23,)) -> 0 | P23: =IFERROR(Июль[[#This Row],[Фактический расход топлива, литр]]-Июль[[#This Row],[Расход топлива по норме, литр]],"") -> 0 | R23: =Июль[[#This Row],[Дата]] -> 2018-07-17 | Z23: =Июль[[#This Row],[Дата]] -> 2018-07-17
A24: 2018-07-18 | C24: 0 | E24: 0 | F24: 0 | G24: 500 | H24: 0 | J24: 0 | L24: =IF(Июль[[#This Row],[Работа спецоборудования за день, м/ч]]="","",Июль[[#This Row],[Работа спецоборудования за день, м/ч]]*$Z$2) -> 0 | M24: =IF($T$2=[Дата],VLOOKUP([Дата],S$2:U$3,3),IF($T$3=[Дата],VLOOKUP([Дата],S$2:U$3,3),INDIRECT($P$1&"!F8")+INDIRECT($P$1&"!U8")+INDIRECT($P$1&"!G8")-INDIRECT($P$1&"!O88"))) -> 450 | N24: =IFERROR(ROUND((Июль[[#This Row],[Пройдено за день, км]]*0.01*$Y$2+Июль[[#This Row],[Расход топлива на работу спецоборудования, литр]]),3)+X24,"") -> 0 | O24: =IF(Июль[[#This Row],[Дата]]="","",IFERROR(ROUND(Июль[[#This Row],[Расход топлива по норме, литр]]/VLOOKUP([Дата],S$2:W$4,5),0)+Y24,)) -> 0 | P24: =IFERROR(Июль[[#This Row],[Фактический расход топлива, литр]]-Июль[[#This Row],[Расход топлива по норме, литр]],"") -> 0 | R24: =Июль[[#This Row],[Дата]] -> 2018-07-18 | Z24: =Июль[[#This Row],[Дата]] -> 2018-07-18
A25: 2018-07-19 | C25: 0 | E25: 0 | F25: 0 | G25: 500 | H25: 0 | J25: 0 | L25: =IF(Июль[[#This Row],[Работа спецоборудования за день, м/ч]]="","",Июль[[#This Row],[Работа спецоборудования за день, м/ч]]*$Z$2) -> 0 | M25: =IF($T$2=[Дата],VLOOKUP([Дата],S$2:U$3,3),IF($T$3=[Дата],VLOOKUP([Дата],S$2:U$3,3),INDIRECT($P$1&"!F8")+INDIRECT($P$1&"!U8")+INDIRECT($P$1&"!G8")-INDIRECT($P$1&"!O88"))) -> 450 | N25: =IFERROR(ROUND((Июль[[#This Row],[Пройдено за день, км]]*0.01*$Y$2+Июль[[#This Row],[Расход топлива на работу спецоборудования, литр]]),3)+X25,"") -> 0 | O25: =IF(Июль[[#This Row],[Дата]]="","",IFERROR(ROUND(Июль[[#This Row],[Расход топлива по норме, литр]]/VLOOKUP([Дата],S$2:W$4,5),0)+Y25,)) -> 0 | P25: =IFERROR(Июль[[#This Row],[Фактический расход топлива, литр]]-Июль[[#This Row],[Расход топлива по норме, литр]],"") -> 0 | R25: =Июль[[#This Row],[Дата]] -> 2018-07-19 | Z25: =Июль[[#This Row],[Дата]] -> 2018-07-19
A26: 2018-07-20 | C26: 0 | E26: 0 | F26: 0 | G26: 500 | H26: 0 | J26: 0 | L26: =IF(Июль[[#This Row],[Работа спецоборудования за день, м/ч]]="","",Июль[[#This Row],[Работа спецоборудования за день, м/ч]]*$Z$2) -> 0 | M26: =IF($T$2=[Дата],VLOOKUP([Дата],S$2:U$3,3),IF($T$3=[Дата],VLOOKUP([Дата],S$2:U$3,3),INDIRECT($P$1&"!F8")+INDIRECT($P$1&"!U8")+INDIRECT($P$1&"!G8")-INDIRECT($P$1&"!O88"))) -> 450 | N26: =IFERROR(ROUND((Июль[[#This Row],[Пройдено за день, км]]*0.01*$Y$2+Июль[[#This Row],[Расход топлива на работу спецоборудования, литр]]),3)+X26,"") -> 0 | O26: =IF(Июль[[#This Row],[Дата]]="","",IFERROR(ROUND(Июль[[#This Row],[Расход топлива по норме, литр]]/VLOOKUP([Дата],S$2:W$4,5),0)+Y26,)) -> 0 | P26: =IFERROR(Июль[[#This Row],[Фактический расход топлива, литр]]-Июль[[#This Row],[Расход топлива по норме, литр]],"") -> 0 | R26: =Июль[[#This Row],[Дата]] -> 2018-07-20 | Z26: =Июль[[#This Row],[Дата]] -> 2018-07-20
A27: 2018-07-21 | C27: 0 | E27: 0 | F27: 0 | G27: 500 | H27: 0 | J27: 0 | L27: =IF(Июль[[#This Row],[Работа спецоборудования за день, м/ч]]="","",Июль[[#This Row],[Работа спецоборудования за день, м/ч]]*$Z$2) -> 0 | M27: =IF($T$2=[Дата],VLOOKUP([Дата],S$2:U$3,3),IF($T$3=[Дата],VLOOKUP([Дата],S$2:U$3,3),INDIRECT($P$1&"!F8")+INDIRECT($P$1&"!U8")+INDIRECT($P$1&"!G8")-INDIRECT($P$1&"!O88"))) -> 450 | N27: =IFERROR(ROUND((Июль[[#This Row],[Пройдено за день, км]]*0.01*$Y$2+Июль[[#This Row],[Расход топлива на работу спецоборудования, литр]]),3)+X27,"") -> 0 | O27: =IF(Июль[[#This Row],[Дата]]="","",IFERROR(ROUND(Июль[[#This Row],[Расход топлива по норме, литр]]/VLOOKUP([Дата],S$2:W$4,5),0)+Y27,)) -> 0 | P27: =IFERROR(Июль[[#This Row],[Фактический расход топлива, литр]]-Июль[[#This Row],[Расход топлива по норме, литр]],"") -> 0 | R27: =Июль[[#This Row],[Дата]] -> 2018-07-21 | Z27: =Июль[[#This Row],[Дата]] -> 2018-07-21
A28: 2018-07-22 | C28: 0 | E28: 0 | F28: 0 | G28: 500 | H28: 0 | J28: 0 | L28: =IF(Июль[[#This Row],[Работа спецоборудования за день, м/ч]]="","",Июль[[#This Row],[Работа спецоборудования за день, м/ч]]*$Z$2) -> 0 | M28: =IF($T$2=[Дата],VLOOKUP([Дата],S$2:U$3,3),IF($T$3=[Дата],VLOOKUP([Дата],S$2:U$3,3),INDIRECT($P$1&"!F8")+INDIRECT($P$1&"!U8")+INDIRECT($P$1&"!G8")-INDIRECT($P$1&"!O88"))) -> 450 | N28: =IFERROR(ROUND((Июль[[#This Row],[Пройдено за день, км]]*0.01*$Y$2+Июль[[#This Row],[Расход топлива на работу спецоборудования, литр]]),3)+X28,"") -> 0 | O28: =IF(Июль[[#This Row],[Дата]]="","",IFERROR(ROUND(Июль[[#This Row],[Расход топлива по норме, литр]]/VLOOKUP([Дата],S$2:W$4,5),0)+Y28,)) -> 0 | P28: =IFERROR(Июль[[#This Row],[Фактический расход топлива, литр]]-Июль[[#This Row],[Расход топлива по норме, литр]],"") -> 0 | R28: =Июль[[#This Row],[Дата]] -> 2018-07-22 | Z28: =Июль[[#This Row],[Дата]] -> 2018-07-22
A29: 2018-07-23 | C29: 0 | E29: 0 | F29: 0 | G29: 500 | H29: 0 | J29: 0 | L29: =IF(Июль[[#This Row],[Работа спецоборудования за день, м/ч]]="","",Июль[[#This Row],[Работа спецоборудования за день, м/ч]]*$Z$2) -> 0 | M29: =IF($T$2=[Дата],VLOOKUP([Дата],S$2:U$3,3),IF($T$3=[Дата],VLOOKUP([Дата],S$2:U$3,3),INDIRECT($P$1&"!F8")+INDIRECT($P$1&"!U8")+INDIRECT($P$1&"!G8")-INDIRECT($P$1&"!O88"))) -> 450 | N29: =IFERROR(ROUND((Июль[[#This Row],[Пройдено за день, км]]*0.01*$Y$2+Июль[[#This Row],[Расход топлива на работу спецоборудования, литр]]),3)+X29,"") -> 0 | O29: =IF(Июль[[#This Row],[Дата]]="","",IFERROR(ROUND(Июль[[#This Row],[Расход топлива по норме, литр]]/VLOOKUP([Дата],S$2:W$4,5),0)+Y29,)) -> 0 | P29: =IFERROR(Июль[[#This Row],[Фактический расход топлива, литр]]-Июль[[#This Row],[Расход топлива по норме, литр]],"") -> 0 | R29: =Июль[[#This Row],[Дата]] -> 2018-07-23 | Z29: =Июль[[#This Row],[Дата]] -> 2018-07-23
A30: 2018-07-24 | C30: 0 | E30: 0 | F30: 0 | G30: 500 | H30: 0 | J30: 0 | L30: =IF(Июль[[#This Row],[Работа спецоборудования за день, м/ч]]="","",Июль[[#This Row],[Работа спецоборудования за день, м/ч]]*$Z$2) -> 0 | M30: =IF($T$2=[Дата],VLOOKUP([Дата],S$2:U$3,3),IF($T$3=[Дата],VLOOKUP([Дата],S$2:U$3,3),INDIRECT($P$1&"!F8")+INDIRECT($P$1&"!U8")+INDIRECT($P$1&"!G8")-INDIRECT($P$1&"!O88"))) -> 450 | N30: =IFERROR(ROUND((Июль[[#This Row],[Пройдено за день, км]]*0.01*$Y$2+Июль[[#This Row],[Расход топлива на работу спецоборудования, литр]]),3)+X30,"") -> 0 | O30: =IF(Июль[[#This Row],[Дата]]="","",IFERROR(ROUND(Июль[[#This Row],[Расход топлива по норме, литр]]/VLOOKUP([Дата],S$2:W$4,5),0)+Y30,)) -> 0 | P30: =IFERROR(Июль[[#This Row],[Фактический расход топлива, литр]]-Июль[[#This Row],[Расход топлива по норме, литр]],"") -> 0 | R30: =Июль[[#This Row],[Дата]] -> 2018-07-24 | Z30: =Июль[[#This Row],[Дата]] -> 2018-07-24
A31: 2018-07-25 | C31: 0 | E31: 0 | F31: 0 | G31: 500 | H31: 0 | J31: 0 | L31: =IF(Июль[[#This Row],[Работа спецоборудования за день, м/ч]]="","",Июль[[#This Row],[Работа спецоборудования за день, м/ч]]*$Z$2) -> 0 | M31: =IF($T$2=[Дата],VLOOKUP([Дата],S$2:U$3,3),IF($T$3=[Дата],VLOOKUP([Дата],S$2:U$3,3),INDIRECT($P$1&"!F8")+INDIRECT($P$1&"!U8")+INDIRECT($P$1&"!G8")-INDIRECT($P$1&"!O88"))) -> 450 | N31: =IFERROR(ROUND((Июль[[#This Row],[Пройдено за день, км]]*0.01*$Y$2+Июль[[#This Row],[Расход топлива на работу спецоборудования, литр]]),3)+X31,"") -> 0 | O31: =IF(Июль[[#This Row],[Дата]]="","",IFERROR(ROUND(Июль[[#This Row],[Расход топлива по норме, литр]]/VLOOKUP([Дата],S$2:W$4,5),0)+Y31,)) -> 0 | P31: =IFERROR(Июль[[#This Row],[Фактический расход топлива, литр]]-Июль[[#This Row],[Расход топлива по норме, литр]],"") -> 0 | R31: =Июль[[#This Row],[Дата]] -> 2018-07-25 | Z31: =Июль[[#This Row],[Дата]] -> 2018-07-25
A32: 2018-07-26 | C32: 0 | E32: 0 | F32: 0 | G32: 500 | H32: 0 | J32: 0 | L32: =IF(Июль[[#This Row],[Работа спецоборудования за день, м/ч]]="","",Июль[[#This Row],[Работа спецоборудования за день, м/ч]]*$Z$2) -> 0 | M32: =IF($T$2=[Дата],VLOOKUP([Дата],S$2:U$3,3),IF($T$3=[Дата],VLOOKUP([Дата],S$2:U$3,3),INDIRECT($P$1&"!F8")+INDIRECT($P$1&"!U8")+INDIRECT($P$1&"!G8")-INDIRECT($P$1&"!O88"))) -> 450 | N32: =IFERROR(ROUND((Июль[[#This Row],[Пройдено за день, км]]*0.01*$Y$2+Июль[[#This Row],[Расход топлива на работу спецоборудования, литр]]),3)+X32,"") -> 0 | O32: =IF(Июль[[#This Row],[Дата]]="","",IFERROR(ROUND(Июль[[#This Row],[Расход топлива по норме, литр]]/VLOOKUP([Дата],S$2:W$4,5),0)+Y32,)) -> 0 | P32: =IFERROR(Июль[[#This Row],[Фактический расход топлива, литр]]-Июль[[#This Row],[Расход топлива по норме, литр]],"") -> 0 | R32: =Июль[[#This Row],[Дата]] -> 2018-07-26 | Z32: =Июль[[#This Row],[Дата]] -> 2018-07-26
A33: 2018-07-27 | C33: 0 | E33: 0 | F33: 0 | G33: 500 | H33: 0 | J33: 0 | L33: =IF(Июль[[#This Row],[Работа спецоборудования за день, м/ч]]="","",Июль[[#This Row],[Работа спецоборудования за день, м/ч]]*$Z$2) -> 0 | M33: =IF($T$2=[Дата],VLOOKUP([Дата],S$2:U$3,3),IF($T$3=[Дата],VLOOKUP([Дата],S$2:U$3,3),INDIRECT($P$1&"!F8")+INDIRECT($P$1&"!U8")+INDIRECT($P$1&"!G8")-INDIRECT($P$1&"!O88"))) -> 450 | N33: =IFERROR(ROUND((Июль[[#This Row],[Пройдено за день, км]]*0.01*$Y$2+Июль[[#This Row],[Расход топлива на работу спецоборудования, литр]]),3)+X33,"") -> 0 | O33: =IF(Июль[[#This Row],[Дата]]="","",IFERROR(ROUND(Июль[[#This Row],[Расход топлива по норме, литр]]/VLOOKUP([Дата],S$2:W$4,5),0)+Y33,)) -> 0 | P33: =IFERROR(Июль[[#This Row],[Фактический расход топлива, литр]]-Июль[[#This Row],[Расход топлива по норме, литр]],"") -> 0 | R33: =Июль[[#This Row],[Дата]] -> 2018-07-27 | Z33: =Июль[[#This Row],[Дата]] -> 2018-07-27
A34: 2018-07-28 | C34: 0 | E34: 0 | F34: 0 | G34: 500 | H34: 0 | J34: 0 | L34: =IF(Июль[[#This Row],[Работа спецоборудования за день, м/ч]]="","",Июль[[#This Row],[Работа спецоборудования за день, м/ч]]*$Z$2) -> 0 | M34: =IF($T$2=[Дата],VLOOKUP([Дата],S$2:U$3,3),IF($T$3=[Дата],VLOOKUP([Дата],S$2:U$3,3),INDIRECT($P$1&"!F8")+INDIRECT($P$1&"!U8")+INDIRECT($P$1&"!G8")-INDIRECT($P$1&"!O88"))) -> 450 | N34: =IFERROR(ROUND((Июль[[#This Row],[Пройдено за день, км]]*0.01*$Y$2+Июль[[#This Row],[Расход топлива на работу спецоборудования, литр]]),3)+X34,"") -> 0 | O34: =IF(Июль[[#This Row],[Дата]]="","",IFERROR(ROUND(Июль[[#This Row],[Расход топлива по норме, литр]]/VLOOKUP([Дата],S$2:W$4,5),0)+Y34,)) -> 0 | P34: =IFERROR(Июль[[#This Row],[Фактический расход топлива, литр]]-Июль[[#This Row],[Расход топлива по норме, литр]],"") -> 0 | R34: =Июль[[#This Row],[Дата]] -> 2018-07-28 | Z34: =Июль[[#This Row],[Дата]] -> 2018-07-28
A35: 2018-07-29 | C35: 0 | E35: 0 | F35: 0 | G35: 500 | H35: 0 | J35: 0 | L35: =IF(Июль[[#This Row],[Работа спецоборудования за день, м/ч]]="","",Июль[[#This Row],[Работа спецоборудования за день, м/ч]]*$Z$2) -> 0 | M35: =IF($T$2=[Дата],VLOOKUP([Дата],S$2:U$3,3),IF($T$3=[Дата],VLOOKUP([Дата],S$2:U$3,3),INDIRECT($P$1&"!F8")+INDIRECT($P$1&"!U8")+INDIRECT($P$1&"!G8")-INDIRECT($P$1&"!O88"))) -> 450 | N35: =IFERROR(ROUND((Июль[[#This Row],[Пройдено за день, км]]*0.01*$Y$2+Июль[[#This Row],[Расход топлива на работу спецоборудования, литр]]),3)+X35,"") -> 0 | O35: =IF(Июль[[#This Row],[Дата]]="","",IFERROR(ROUND(Июль[[#This Row],[Расход топлива по норме, литр]]/VLOOKUP([Дата],S$2:W$4,5),0)+Y35,)) -> 0 | P35: =IFERROR(Июль[[#This Row],[Фактический расход топлива, литр]]-Июль[[#This Row],[Расход топлива по норме, литр]],"") -> 0 | R35: =Июль[[#This Row],[Дата]] -> 2018-07-29 | U35: 750 | Z35: =Июль[[#This Row],[Дата]] -> 2018-07-29
A36: 2018-07-30 | C36: 0 | E36: 0 | F36: 0 | G36: 1250 | H36: 0 | J36: 0 | L36: =IF(Июль[[#This Row],[Работа спецоборудования за день, м/ч]]="","",Июль[[#This Row],[Работа спецоборудования за день, м/ч]]*$Z$2) -> 0 | M36: =IF($T$2=[Дата],VLOOKUP([Дата],S$2:U$3,3),IF($T$3=[Дата],VLOOKUP([Дата],S$2:U$3,3),INDIRECT($P$1&"!F8")+INDIRECT($P$1&"!U8")+INDIRECT($P$1&"!G8")-INDIRECT($P$1&"!O88"))) -> 450 | N36: =IFERROR(ROUND((Июль[[#This Row],[Пройдено за день, км]]*0.01*$Y$2+Июль[[#This Row],[Расход топлива на работу спецоборудования, литр]]),3)+X36,"") -> 0 | O36: =IF(Июль[[#This Row],[Дата]]="","",IFERROR(ROUND(Июль[[#This Row],[Расход топлива по норме, литр]]/VLOOKUP([Дата],S$2:W$4,5),0)+Y36,)) -> 0 | P36: =IFERROR(Июль[[#This Row],[Фактический расход топлива, литр]]-Июль[[#This Row],[Расход топлива по норме, литр]],"") -> 0 | R36: =Июль[[#This Row],[Дата]] -> 2018-07-30 | Z36: =Июль[[#This Row],[Дата]] -> 2018-07-30
A37: 2018-07-31 | C37: 0 | E37: 0 | F37: 0 | G37: 1250 | H37: 0 | J37: 0 | L37: =IF(Июль[[#This Row],[Работа спецоборудования за день, м/ч]]="","",Июль[[#This Row],[Работа спецоборудования за день, м/ч]]*$Z$2) -> 0 | M37: =IF($T$2=[Дата],VLOOKUP([Дата],S$2:U$3,3),IF($T$3=[Дата],VLOOKUP([Дата],S$2:U$3,3),INDIRECT($P$1&"!F8")+INDIRECT($P$1&"!U8")+INDIRECT($P$1&"!G8")-INDIRECT($P$1&"!O88"))) -> 450 | N37: =IFERROR(ROUND((Июль[[#This Row],[Пройдено за день, км]]*0.01*$Y$2+Июль[[#This Row],[Расход топлива на работу спецоборудования, литр]]),3)+X37,"") -> 0 | O37: =IF(Июль[[#This Row],[Дата]]="","",IFERROR(ROUND(Июль[[#This Row],[Расход топлива по норме, литр]]/VLOOKUP([Дата],S$2:W$4,5),0)+Y37,)) -> 0 | P37: =IFERROR(Июль[[#This Row],[Фактический расход топлива, литр]]-Июль[[#This Row],[Расход топлива по норме, литр]],"") -> 0 | R37: =Июль[[#This Row],[Дата]] -> 2018-07-31 | Z37: =Июль[[#This Row],[Дата]] -> 2018-07-31
A38: Итог | E38: =SUBTOTAL(109,[Пройдено за день, км]) -> -220024 | F38: =SUBTOTAL(109,[Выдано топливо, литр]) -> 0 | J38: =SUBTOTAL(109,[Работа спецоборудования за день, м/ч]) -> -945 | K38: =SUBTOTAL(109,[Количество ходок]) -> 25 | L38: =SUBTOTAL(109,[Расход топлива на работу спецоборудования, литр]) -> -5197.5 | N38: =SUBTOTAL(109,[Расход топлива по норме, литр]) -> -108300.747 | O38: =SUBTOTAL(109,[Фактический расход топлива, литр]) -> 0 | P38: =SUBTOTAL(109,[Отклонение от нормы (Перерасход(+), экономия(-)), литр]) -> 108300.747 | R38: 1-я пол. | S38: =SUMIFS(S$7:S$37,INDIRECT("Июль[Дата]"),">="&$S$2,INDIRECT("Июль[Дата]"),"<="&$T$2)+IF(MONTH($T$2)<>MONTH($S$2),INDIRECT(TEXT($A$7-1,"ММММ")&"!F38")-SUM(INDIRECT(TEXT($A$7-1,"ММММ")&"!V1:V2"))) ->  | T38: =SUMIFS(T$7:T$37,INDIRECT("Июль[Дата]"),">="&$S$2,INDIRECT("Июль[Дата]"),"<="&$T$2)+IF(MONTH($T$2)<>MONTH($S$2),INDIRECT(TEXT($A$7-1,"ММММ")&"!F38")-SUM(INDIRECT(TEXT($A$7-1,"ММММ")&"!V1:V2"))) ->  | Z38: 1-я пол.
K39: =SUMIFS(K7:K37,A7:A37,">="&$S$2,A7:A37,"<="&$T$2) -> 0 | R39: 2-я пол. | S39: =SUMIFS(S$7:S$37,INDIRECT("Июль[Дата]"),">="&$S$3,INDIRECT("Июль[Дата]"),"<="&$T$3)+IF(MONTH($T$3)<>MONTH($S$3),INDIRECT(TEXT($A$7-1,"ММММ")&"!F38")-SUM(INDIRECT(TEXT($A$7-1,"ММММ")&"!V1:V2"))) ->  | T39: =SUMIFS(T$7:T$37,INDIRECT("Июль[Дата]"),">="&$S$3,INDIRECT("Июль[Дата]"),"<="&$T$3)+IF(MONTH($T$3)<>MONTH($S$3),INDIRECT(TEXT($A$7-1,"ММММ")&"!F38")-SUM(INDIRECT(TEXT($A$7-1,"ММММ")&"!V1:V2"))) ->  | Z39: 2-я пол.
K40: =SUMIFS(K7:K37,A7:A37,">="&$S$3,A7:A37,"<="&$T$3) -> 0

Sheet ТС
G1: Зима : | H1: 01.11 - 31.03 | L1: Зима : | M1: 01.11 - 31.03 | P1: Расчет максимальной нормы расхода ДТ (литр/100км)
G2: Лето: | H2: 01.04 - 30.10 | L2: Лето: | M2: 01.04 - 30.10
G3: доп.коэфф-т к норме | L3: доп.коэфф-т к норме
A4: № п/п | B4: Номер гос.регистрации / Заводской номер | C4: Километраж, км | D4: Спецоборудование, м/ч | E4: Топливо, л | F4: Базовая норма расхода на 100 км | G4: Зима | H4: Лето | I4: Итога норма а/м ЗИМА | J4: Итога норма а/м ЛЕТО | K4: Базовая норма расхода на 1 мото/час | L4: "Зима" | M4: "Лето" | N4: Итога норма а/м "ЗИМА" | O4: Итога норма а/м "ЛЕТО" | P4: Норма на 100 км, литров | Q4: движение с манипулятором | R4: Тоннаж | S4: Литры | T4: На движение с грузом | U4: Тоннаж1 | V4: К-т загрузки | W4: ИТОГ | X4: 25% за работу в городе с населением свыше 3 млн. человек | Y4: 10 % за работу зимой
A5: 1 | B5: Норма 1 | C5: 209024 | D5: 620 | E5: 500 | F5: 46.86 | G5: 10 | H5: 0 | I5: =F5*(100+G5)% -> 51.546 | J5: =F5*(100+H5)% -> 46.86 | K5: 5.5 | L5: 10 | M5: 0 | N5: =K5*(100+L5)% -> 6.05 | O5: =K5*(100+M5)% -> 5.5 | P5: 32.2 | Q5: =R5*S5 -> 2.938 | R5: 2.26 | S5: 1.3 | T5: =U5*V5*S5 -> 5.2 | U5: 8 | V5: 0.5 | W5: =P5+Q5+T5 -> 40.338 | X5: =W5*25%+W5 -> 50.4225 | Y5: =W5*10%+X5 -> 54.4563
A6: 2 | B6: Норма 2 | E6: 500 | F6: =F5-F5*5% -> 44.517 | G6: 10 | H6: 0 | I6: =F6*(100+G6)% -> 48.9687 | J6: =F6*(100+H6)% -> 44.517 | K6: =K5-K5*5% -> 5.225 | L6: 10 | M6: 0 | N6: =K6*(100+L6)% -> 5.7475 | O6: =K6*(100+M6)% -> 5.225 | P6: 32.2 | Q6: =R6*S6 -> 2.938 | R6: 2.26 | S6: 1.3 | T6: =U6*V6*S6 -> 5.2 | U6: 8 | V6: 0.5 | W6: =P6+Q6+T6 -> 40.338 | X6: =W6*25%+W6 -> 50.4225 | Y6: =W6*10%+X6 -> 54.4563
A7: 3 | B7: Норма 3 | E7: 500 | F7: =F5-F5*10% -> 42.174 | G7: 10 | H7: 0 | I7: =F7*(100+G7)% -> 46.3914 | J7: 42.174 | K7: =K5-K5*10% -> 4.95 | L7: 10 | M7: 0 | N7: =K7*(100+L7)% -> 5.445 | O7: =K7*(100+M7)% -> 4.95 | P7: 32.2 | Q7: =R7*S7 -> 2.938 | R7: 2.26 | S7: 1.3 | T7: =U7*V7*S7 -> 5.2 | U7: 8 | V7: 0.5 | W7: =P7+Q7+T7 -> 40.338 | X7: =W7*25%+W7 -> 50.4225 | Y7: =W7*10%+X7 -> 54.4563
A8: 4 | B8: Переход 1 | E8: 500 | F8: 46.86 | G8: 10 | H8: 0 | I8: =F8*(100+G8)% -> 51.546 | J8: =F8*(100+H8)% -> 46.86 | K8: 5.5 | L8: 10 | M8: 0 | N8: =K8*(100+L8)% -> 6.05 | O8: =K8*(100+M8)% -> 5.5 | Q8: =R8*S8 -> 0 | T8: =U8*V8*S8 -> 0 | W8: =P8+Q8+T8 -> 0 | X8: =W8*25%+W8 -> 0 | Y8: =W8*10%+X8 -> 0
A9: 5 | B9: Переход 2 | E9: 500 | F9: =F8-F8*5% -> 44.517 | G9: 10 | H9: 0 | I9: =F9*(100+G9)% -> 48.9687 | J9: =F9*(100+H9)% -> 44.517 | K9: =K8-K8*5% -> 5.225 | L9: 10 | M9: 0 | N9: =K9*(100+L9)% -> 5.7475 | O9: =K9*(100+M9)% -> 5.225 | Q9: =R9*S9 -> 0 | T9: =U9*V9*S9 -> 0 | W9: =P9+Q9+T9 -> 0 | X9: =W9*25%+W9 -> 0 | Y9: =W9*10%+X9 -> 0
A10: 6 | B10: Переход 3 | E10: 500 | F10: =F8-F8*10% -> 42.174 | G10: 10 | H10: 0 | I10: =F10*(100+G10)% -> 46.3914 | J10: 42.174 | K10: =K8-K8*10% -> 4.95 | L10: 10 | M10: 0 | N10: =K10*(100+L10)% -> 5.445 | O10: =K10*(100+M10)% -> 4.95 | Q10: =R10*S10 -> 0 | T10: =U10*V10*S10 -> 0 | W10: =P10+Q10+T10 -> 0 | X10: =W10*25%+W10 -> 0 | Y10: =W10*10%+X10 -> 0
B12: Зима
B13: Лето
B15: Январь
B16: Февраль
B17: Март
B18: Апрель
B19: Май
B20: Июнь
B21: Июль
B22: Август
B23: Сентябрь
B24: Октябрь
B25: Ноябрь
B26: Декабрь
B28: Норма 1
B29: Норма 2
B30: Норма 3
B31: Переход 1
B32: Переход 2
B33: Переход 3

Sheet Сотрудники
B1: Ф.И.О.
B2: Зяблов А.А
B3: Ильин А.Г.
B4: Ильин Е.Н.
B5: Ильичев Ю.Ф.
B6: Кобалян М.В.
B7: Лагутенко А.А.
B8: Малышев О.С.
B9: Никляев В.А.
B10: Сергеев Д.О.
B11: Ястребов Е.В.
